[Event "41st Amateur D7"]
[Site "ChessGUI4"]
[Date "2013.07.11"]
[Round "34.2"]
[White "ChessKiss 1.7 64-bit"]
[Black "MadChess 1.2"]
[Result "1-0"]
[BlackElo "2200"]
[ECO "B67"]
[EventDate "2013.??.??"]
[TimeControl "40/1500:40/1500:40/1500"]
[WhiteElo "2214"]

{ i5 Quad } 1.e4 { [%eval 0,1] [%emt 0:00:00] } 1...c5
{ [%eval 0,1] [%emt 0:00:00] } 2.Nf3 { [%eval 0,1] [%emt 0:00:00] } 2...Nc6
{ [%eval 0,1] [%emt 0:00:00] } 3.d4 { [%eval 0,1] [%emt 0:00:00] } 3...cxd4
{ [%eval 0,1] [%emt 0:00:00] } 4.Nxd4 { [%eval 0,1] [%emt 0:00:00] } 4...Nf6
{ [%eval 0,1] [%emt 0:00:00] } 5.Nc3 { [%eval 0,1] [%emt 0:00:00] } 5...d6
{ [%eval 0,1] [%emt 0:00:00] } 6.Bg5 { [%eval 0,1] [%emt 0:00: 00] } 6...e6
{ [%eval 0,1] [%emt 0:00:00] } 7.Qd2 { [%eval 0,1] [%emt 0:00:00] } 7...a6
{ [%eval 0,1] [%emt 0:00:00] } 8.O-O-O { [%eval 0,1] [%emt 0:00:00] } 8...Bd7
{ [%eval 0,1] [%emt 0:00:00] } 9.Kb1 { [%eval 64,11] [%emt 0:00:43] } 9...h6
{ [%eval -20,12] [%emt 0:01:03] (Be7) } 10.Be3
{ [%eval 58,12] [%emt 0:00:37] (Bxf6) } 10...Be7
{ [%eval -4,11] [%emt 0:00:53] (Ng4) } 11.Nxc6
{ [%eval 47,12] [%emt 0:00:40] (Be2) } 11...Bxc6
{ [%eval -15,10] [%emt 0:00:17] (bxc6) } 12.f3
{ [%eval 30,12] [%emt 0:00:38] (f3) } 12...O-O
{ [%eval -7,10] [%emt 0:00:43] (Qb8) } 13.Qf2
{ [%eval 45,11] [%emt 0:00:38] (Qf2) } 13...Qc7
{ [%eval 3,9] [%emt 0:00:17] (b5) } 14.Bb6
{ [%eval 45, 11] [%emt 0:00:37] (Bd3) } 14...Qb8
{ [%eval 0,10] [%emt 0:00:26] (Qb8) } 15.Qg3
{ [%eval 35,11] [%emt 0:00:36] (Be3) } 15...Nh5
{ [%eval 0,10] [%emt 0:00:23] (Rc8) } 16.Qh3
{ [%eval 32,12] [%emt 0:00:35] (Qg4) } 16...Nf4
{ [%eval 0,13] [%emt 0:01:08] (Nf6) } 17.Qg4
{ [%eval 42,12] [%emt 0:00:34] (Qg3) } 17...e5
{ [%eval 6,11] [%emt 0:00:30] (Ng6) } 18.Be3
{ [%eval 40,11] [%emt 0:00:34] (Qg3) } 18...f5
{ [%eval -14,12] [%emt 0: 00:31] (f5) } 19.exf5
{ [%eval 25,12] [%emt 0:00:32] (exf5) } 19...h5
{ [%eval 2,12] [%emt 0:00:23] (h5) } 20.Qg3
{ [%eval 46,12] [%emt 0:00:31] (Qg3) } 20...Rxf5
{ [%eval -1,11] [%emt 0:00:16] (Rxf5) } 21.Bxf4
{ [%eval 56,12] [%emt 0:00:27] (Bc4) } 21...Rxf4
{ [%eval -48,12] [%emt 0:01:17] (Rxf4) } 22.Qg6
{ [%eval 47,11] [%emt 0:00:29] (Bd3) } 22...Qe8
{ [%eval 14,12] [%emt 0:00:25] (Qe8) } 23.Qxe8+
{ [%eval 35,13] [%emt 0:00:28] (Bd3) } 23...Rxe8
{ [%eval 28,14] [%emt 0:01:16] (Rxe8) } 24.Nd5
{ [%eval 36,14] [%emt 0:00:28] (Nd5) } 24...Bxd5
{ [%eval 27,14] [%emt 0:01:04] (Bxd5) } 25.Rxd5
{ [%eval 32,14] [%emt 0:00:29] (Rxd5) } 25...g5
{ [%eval 33,13] [%emt 0:01:16] (Rb4) } 26.Bd3
{ [%eval 85,13] [%emt 0:00:26] (Bd3) } 26...Kg7
{ [%eval 22,12] [%emt 0:00:17] (Kg7) } 27.Be4
{ [%eval 82,13] [%emt 0:00:25] (Be4) } 27...g4
{ [%eval 22,12] [%emt 0:00:37] (Rc8) } 28.Rd3
{ [%eval 115,12] [%emt 0:00:22] (Rd3) } 28...b6
{ [%eval 21,12] [%emt 0:00:36] (b6) } 29.Rc3
{ [%eval 105,11] [%emt 0:00:19] (Rhd1) } 29...Rf7
{ [%eval 0,11] [%emt 0:00:40] (Kh6) } 30.Bd5
{ [%eval 119,13] [%emt 0:00:21] (Rd1) } 30...Rf4
{ [%eval -10,12] [%emt 0:00:32] (Rf4) } 31.Be4
{ [%eval 123, 13] [%emt 0:00:22] (Rc7) } 31...Rf7
{ [%eval 0,100] [%emt 0:00:01] (Rf7) } 32.Rc6
{ [%eval 111,12] [%emt 0:00:22] (Rd1) } 32...Rb8
{ [%eval 0,12] [%emt 0:00:33] (Rb8) } 33.Bd5
{ [%eval 106,13] [%emt 0:00:21] (Rd1) } 33...Rf4
{ [%eval -3,14] [%emt 0:01:09] (Rf4) } 34.Rc7
{ [%eval 112,12] [%emt 0:00:20] (Rc7) } 34...Kf8
{ [%eval -6,13] [%emt 0:00:22] (Kf6) } 35.fxg4
{ [%eval 122,12] [%emt 0:00:20] (Rd1) } 35...Rxg4
{ [%eval -68,14] [%emt 0:01:09] (hxg4) } 36.g3
{ [%eval 144,13] [%emt 0:00:19] (Rf1) } 36...Rg7
{ [%eval -123,15] [%emt 0:01:00] (Rg7) } 37.Rf1+
{ [%eval 187,14] [%emt 0:00:18] (Rf1) } 37...Ke8
{ [%eval -126,16] [%emt 0:00:52] (Ke8) } 38.Rf5
{ [%eval 191,13] [%emt 0:00:08] (Rf5) } 38...Rh7
{ [%eval -131,16] [%emt 0:02:22] (Rh7) } 39.Ra7
{ [%eval 218,13] [%emt 0:00:19] (h4) } 39...h4
{ [%eval -90,13] [%emt 0:00:44] (a5) } 40.gxh4
{ [%eval 256,12] [%emt 0:00:18] (Rxa6) } 40...Rg7
{ [%eval -148,14] [%emt 0:00:52] (Rg7) } 41.c3
{ [%eval 276,13] [%emt 0:01:00] (Rf1) } 41...Bf6
{ [%eval -151,14] [%emt 0:00:52] (Bf6) } 42.Bc6+
{ [%eval 285,15] [%emt 0:00:58] (Bc6) } 42...Kd8
{ [%eval -143,15] [%emt 0:00:31] (Kd8) } 43.Rxg7
{ [%eval 275,16] [%emt 0:00:57] (Rxa6) } 43...Bxg7
{ [%eval -174,17] [%emt 0:00:52] (Bxg7) } 44.Rf7
{ [%eval 266,16] [%emt 0: 00:55] (Rf7) } 44...Rc8
{ [%eval -186,16] [%emt 0:00:27] (Bh6) } 45.Rd7+
{ [%eval 263, 15] [%emt 0:00:53] (Rd7) } 45...Ke8
{ [%eval -186,16] [%emt 0:00:00] (Ke8) } 46.Rxd6+
{ [%eval 253,16] [%emt 0:00:52] } 46...Ke7
{ [%eval -242,14] [%emt 0:00:34] (Ke7) } 47.Bb7
{ [%eval 239,16] [%emt 0:00:52] (Rd7) } 47...Kxd6
{ [%eval -153,15] [%emt 0:00:47] (Kxd6) } 48.Bxc8
{ [%eval 277,18] [%emt 0:00:49] (Bxc8) } 48...a5
{ [%eval -155,16] [%emt 0:01:26] (e4) } 49.Bb7
{ [%eval 282,19] [%emt 0:00:47] (Bb7) } 49...Ke7
{ [%eval -162,15] [%emt 0:00:44] (Ke6) } 50.Kc2
{ [%eval 290,19] [%emt 0:00:46] (Kc2) } 50...Kf6
{ [%eval -160,15] [%emt 0:01:10] (Bh6) } 51.Be4
{ [%eval 283,19] [%emt 0:00:44] (Kd3) } 51...Bh6
{ [%eval -173,15] [%emt 0:00:39] (Bh6) } 52.h3
{ [%eval 274,19] [%emt 0:00:43] (Kd3) } 52...Bf4
{ [%eval -185,14] [%emt 0:00:27] (a4) } 53.Kd3
{ [%eval 292,18] [%emt 0:00:42] (Kd3) } 53...Bh2
{ [%eval -199,15] [%emt 0:01: 17] (Bc1) } 54.h5
{ [%eval 291,17] [%emt 0:00:41] (h5) } 54...Kg5
{ [%eval -203,15] [%emt 0:00:34] (Kg7) } 55.Bf3
{ [%eval 292,18] [%emt 0:00:40] (Bf3) } 55...Bf4
{ [%eval -207,15] [%emt 0:00:58] (a4) } 56.b3
{ [%eval 291,19] [%emt 0:00:38] (b4) } 56...Bg3
{ [%eval -210,15] [%emt 0:01:02] (Bc1) } 57.c4
{ [%eval 291,19] [%emt 0:00: 34] (Ke4) } 57...Kf5
{ [%eval -193,13] [%emt 0:00:27] (Bf2) } 58.Bg4+
{ [%eval 291,18] [%emt 0:00:36] (a3) } 58...Kf4
{ [%eval -211,16] [%emt 0:00:49] (Kf6) } 59.h6
{ [%eval 450,19] [%emt 0:00:35] (h6) } 59...Bh4
{ [%eval -240,16] [%emt 0:00:39] (Bh4) } 60.h7
{ [%eval 454,19] [%emt 0:00:34] (a3) } 60...Bf6
{ [%eval -202,15] [%emt 0:00:37] (Bf6) } 61.Bd7
{ [%eval 455,19] [%emt 0:00:33] (c5) } 61...e4+
{ [%eval -214,15] [%emt 0:00:38] (e4) } 62.Ke2
{ [%eval 446,19] [%emt 0:00:32] (Ke2) } 62...Ke5
{ [%eval -214, 15] [%emt 0:00:31] (Kg5) } 63.h4
{ [%eval 442,17] [%emt 0:00:31] (h4) } 63...Bg7
{ [%eval -215,15] [%emt 0:00:50] (Kf4) } 64.Be8
{ [%eval 440,16] [%emt 0:00:30] (a3) } 64...Kd4
{ [%eval -230,15] [%emt 0:00:59] (Kf4) } 65.h5
{ [%eval 466,18] [%emt 0:00:29] (Bf7) } 65...Bh8
{ [%eval -221,14] [%emt 0:00:14] (Ke5) } 66.Bb5
{ [%eval 495, 16] [%emt 0:00:13] (a3) } 66...Bg7
{ [%eval -221,15] [%emt 0:00:18] (e3) } 67.Bc6
{ [%eval 487,16] [%emt 0:00:28] (h6) } 67...Be5
{ [%eval -221,15] [%emt 0:00:16] (Be5) } 68.Ba4
{ [%eval 487,17] [%emt 0:00:28] (h6) } 68...Bf6
{ [%eval -221,16] [%emt 0:00: 26] (Bf6) } 69.Kd2
{ [%eval 455,18] [%emt 0:00:24] (h6) } 69...Bg5+
{ [%eval -221,17] [%emt 0:00:31] (Ke5) } 70.Kd1
{ [%eval 455,18] [%emt 0:00:10] (Kd1) } 70...Bf6
{ [%eval -221,17] [%emt 0:00:29] (Bf6) } 71.Ke2
{ [%eval 449,18] [%emt 0:00:24] (Ke2) } 71...Be5
{ [%eval -222,16] [%emt 0:00:21] (Ke5) } 72.Bb5
{ [%eval 483,15] [%emt 0:00:09] (h6) } 72...Bg7
{ [%eval 0,18] [%emt 0:00:18] (a4) } 73.Kd2 { [%eval 466,17] [%emt 0:00:25] }
73...Bh6+ { [%eval -221,17] [%emt 0:00:37] (Bf6) } 74.Kd1
{ [%eval 459,19] [%emt 0:00:24] (Ke1) } 74...Bg7
{ [%eval -222,16] [%emt 0:00:13] (Bg7) } 75.Ke2
{ [%eval 458,18] [%emt 0:00:23] (Ke2) } 75...Bf6
{ [%eval -222,16] [%emt 0:00: 27] (a4) } 76.Bc6
{ [%eval 481,17] [%emt 0:00:23] (a3) } 76...Be5
{ [%eval 0,19] [%emt 0:00:39] (Bg7) } 77.Kd2
{ [%eval 481,17] [%emt 0:00:22] } 77...Bf6
{ [%eval -220,15] [%emt 0:00:35] (Bf6) } 78.Ba4
{ [%eval 456,17] [%emt 0:00:21] (h6) } 78...Be5
{ [%eval 0,100] [%emt 0:00:00] (Ke5) } 79.Bc6
{ [%eval 455,17] [%emt 0:00:20] } 79...Bf6
{ [%eval 0,100] [%emt 0:00:01] (Bf6) } 80.Bd7
{ [%eval 455,18] [%emt 0:00:20] (h6) } 80...Bg7
{ [%eval -222,16] [%emt 0:01:09] (Ke5) } 81.Ke2
{ [%eval 455,18] [%emt 0:01:02] (a3) } 81...Bf6
{ [%eval -222,17] [%emt 0:01:46] (Bf6) } 82.Ba4
{ [%eval 455, 19] [%emt 0:01:01] (h6) } 82...Be5
{ [%eval 0,100] [%emt 0:00:00] (Ke5) } 83.Bc6
{ [%eval 467,19] [%emt 0:00:59] } 83...Bh8
{ [%eval -222,17] [%emt 0:00:53] (Bg7) } 84.Bd7
{ [%eval 459,19] [%emt 0:00:55] (h6) } 84...Bf6
{ [%eval 0,21] [%emt 0:01:52] (Be5) } 85.Kd2
{ [%eval 454,17] [%emt 0:00:56] } 85...a4
{ [%eval 0,100] [%emt 0:00:00] (Be5) } 86.Bxa4
{ [%eval 594,19] [%emt 0:00:49] } 86...Bg7
{ [%eval -396,17] [%emt 0: 02:14] (Be5) } 87.Bb5
{ [%eval 664,18] [%emt 0:00:52] (Ke2) } 87...Be5
{ [%eval -445, 15] [%emt 0:00:53] (e3) } 88.b4
{ [%eval 1020,20] [%emt 0:00:51] (b4) } 88...e3+
{ [%eval -660,15] [%emt 0:00:32] (Bf6) } 89.Ke2
{ [%eval 1023,20] [%emt 0:00:50] (Ke2) } 89...Bf6
{ [%eval -770,17] [%emt 0:01:30] (Bf6) } 90.a4
{ [%eval 1071,21] [%emt 0:00:49] (a4) } 90...Ke5
{ [%eval -786,16] [%emt 0:00:39] (Ke5) } 91.a5
{ [%eval 1066,18] [%emt 0:00:47] (a5) } 91...bxa5
{ [%eval -795,17] [%emt 0:00:49] (bxa5) } 1-0

[Event "41st Amateur D7"]
[Site "ChessGUI4"]
[Date "2013.07.11"]
[Round "34.3"]
[White "FireFly 2.6.0 64-bit"]
[Black "ProChess 1.02AD"]
[Result "0-1"]
[BlackElo "2244"]
[ECO "E21"]
[EventDate "2013.??.??"]
[TimeControl "40/1500:40/1500:40/1500"]
[WhiteElo "2258"]

{ i5 Quad } 1.d4 { [%eval 0,1] [%emt 0:00:00] } 1...e6
{ [%eval 0,1] [%emt 0:00:00] } 2.c4 { [%eval 0,1] [%emt 0:00:00] } 2...Nf6
{ [%eval 0,1] [%emt 0:00:00] } 3.Nc3 { [%eval 0,1] [%emt 0:00:00] } 3...Bb4
{ [%eval 0,1] [%emt 0:00:00] } 4.Nf3 { [%eval 0, 1] [%emt 0:00:00] } 4...O-O
{ [%eval 0,1] [%emt 0:00:00] } 5.Bg5 { [%eval 0,1] [%emt 0:00:00] } 5...d5
{ [%eval 0,1] [%emt 0:00:00] } 6.cxd5 { [%eval 0,1] [%emt 0:00:00] } 6...exd5
{ [%eval 0,1] [%emt 0:00:00] } 7.e3 { [%eval 0,1] [%emt 0:00:00] } 7...Nbd7
{ [%eval 0,1] [%emt 0:00:00] } 8.Rc1 { [%eval 0,1] [%emt 0:00:00] } 8...c5
{ [%eval 0,1] [%emt 0:00:00] } 9.Be2 { [%eval 24,11] [%emt 0:00:57] } 9...h6
{ [%eval 6,12] [%emt 0: 00:42] (Qa5) } 10.Bf4
{ [%eval 41,11] [%emt 0:00:56] (Bxf6) } 10...Ne4
{ [%eval 15,13] [%emt 0:01:24] (Bxc3) } 11.O-O
{ [%eval 44,12] [%emt 0:00:55] (O-O) } 11...Bxc3
{ [%eval 14,14] [%emt 0:01:17] (Bxc3) } 12.bxc3
{ [%eval 40,12] [%emt 0:00:55] (bxc3) } 12...c4
{ [%eval 20,13] [%emt 0:01:13] (c4) } 13.Nd2
{ [%eval 46,13] [%emt 0: 00:54] (Nd2) } 13...f5
{ [%eval 16,12] [%emt 0:00:37] (Nxd2) } 14.Nxe4
{ [%eval 72,12] [%emt 0:00:53] (Qc2) } 14...fxe4
{ [%eval 27,13] [%emt 0:01:14] (fxe4) } 15.a4
{ [%eval 70,11] [%emt 0:00:44] (Bg4) } 15...Nf6
{ [%eval 33,12] [%emt 0:00:43] (Nf6) } 16.Rb1
{ [%eval 70,11] [%emt 0:00:43] (f3) } 16...Rf7
{ [%eval 35,13] [%emt 0:00:29] (b6) } 17.Qd2
{ [%eval 73,11] [%emt 0:00:43] (Qc2) } 17...Bf5
{ [%eval 35,13] [%emt 0: 00:29] (Qe8) } 18.Rb5
{ [%eval 77,11] [%emt 0:00:42] (Rfe1) } 18...Qd7
{ [%eval 32,12] [%emt 0:00:39] (b6) } 19.Qb2
{ [%eval 72,11] [%emt 0:00:42] (Qb2) } 19...Re8
{ [%eval 30,12] [%emt 0:01:04] (b6) } 20.a5
{ [%eval 124,11] [%emt 0:00:42] (Rb1) } 20...Bg6
{ [%eval 27,12] [%emt 0:01:01] (a6) } 21.Rb1
{ [%eval 144,12] [%emt 0:00:41] (Be5) } 21...Ree7
{ [%eval 22,13] [%emt 0:00:52] (Qd8) } 22.Qa3
{ [%eval 150,12] [%emt 0:00: 41] (Qb4) } 22...a6
{ [%eval 22,11] [%emt 0:00:28] (Qc8) } 23.Rxb7
{ [%eval 230,14] [%emt 0:00:41] (Rb6) } 23...Qxb7
{ [%eval 50,15] [%emt 0:00:40] (Qxb7) } 24.Rxb7
{ [%eval 211,14] [%emt 0:00:40] (Rxb7) } 24...Rxb7
{ [%eval 46,14] [%emt 0:01:54] (Rxb7) } 25.Bf1
{ [%eval 202,13] [%emt 0:00:40] (h3) } 25...Rb1
{ [%eval 59,13] [%emt 0:01: 33] (Rb1) } 26.Qc5
{ [%eval 107,12] [%emt 0:00:39] (h3) } 26...Bh5
{ [%eval 125,12] [%emt 0:00:13] (Bh5) } 27.f3
{ [%eval 34,12] [%emt 0:00:39] (f3) } 27...exf3
{ [%eval 256,13] [%emt 0:00:30] (exf3) } 28.gxf3
{ [%eval 0,11] [%emt 0:00:31] (gxf3) } 28...Bxf3
{ [%eval 339,13] [%emt 0:00:19] (Bxf3) } 29.Qc8+
{ [%eval -208,13] [%emt 0: 00:31] (Qc8) } 29...Rf8
{ [%eval 347,13] [%emt 0:00:21] (Rf8) } 30.Qe6+
{ [%eval -232, 13] [%emt 0:00:31] (Qf5) } 30...Kh8
{ [%eval 354,13] [%emt 0:00:23] (Kh8) } 31.Qxa6
{ [%eval -238,13] [%emt 0:00:31] (Qd6) } 31...Be2
{ [%eval 362,12] [%emt 0:00:10] (Ne4) } 32.Qd6
{ [%eval -240,12] [%emt 0:00:31] (Qd6) } 32...Rg8
{ [%eval 374,11] [%emt 0:00: 19] (Rf7) } 33.Kg2
{ [%eval -287,12] [%emt 0:00:31] (h4) } 33...Bxf1+
{ [%eval 495,14] [%emt 0:00:35] (Bxf1) } 34.Kf3
{ [%eval -430,12] [%emt 0:00:31] (Kf3) } 34...Bh3
{ [%eval 499,13] [%emt 0:00:13] (Bh3) } 35.Qe7
{ [%eval -529,12] [%emt 0:00:31] (Qe7) } 35...Re8
{ [%eval 562,12] [%emt 0:00:08] (Ne4) } 36.Qf7
{ [%eval -937,12] [%emt 0:00:50] (Qf7) } 36...Rf1+
{ [%eval 596,13] [%emt 0:00:13] (Rf1) } 37.Ke2
{ [%eval -998,12] [%emt 0:00:29] (Ke2) } 37...Rxf4
{ [%eval 595,12] [%emt 0:00:10] (Rxf4) } 38.Qxe8+
{ [%eval -1087,15] [%emt 0:00:29] (Qxe8) } 0-1

[Event "41st Amateur D7"]
[Site "ChessGUI4"]
[Date "2013.07.11"]
[Round "34.4"]
[White "Tigran 2.3 64-bit"]
[Black "Waxman 2011"]
[Result "1/2-1/2"]
[BlackElo "2256"]
[ECO "E05"]
[EventDate "2013.??.??"]
[TimeControl "40/1500:40/1500:40/1500"]
[WhiteElo "2289"]

{ i5 Quad } 1.d4 { [%eval 0,1] [%emt 0:00:00] } 1...Nf6
{ [%eval 0,1] [%emt 0:00:00] } 2.c4 { [%eval 0,1] [%emt 0:00:00] } 2...e6
{ [%eval 0,1] [%emt 0:00:00] } 3.g3 { [%eval 0,1] [%emt 0:00:00] } 3...d5
{ [%eval 0,1] [%emt 0:00:00] } 4.Nf3 { [%eval 0,1] [%emt 0:00:00] } 4...Be7
{ [%eval 0,1] [%emt 0:00:00] } 5.Bg2 { [%eval 0,1] [%emt 0: 00:00] } 5...O-O
{ [%eval 0,1] [%emt 0:00:00] } 6.O-O { [%eval 0,1] [%emt 0:00:00] } 6...dxc4
{ [%eval 0,1] [%emt 0:00:00] } 7.Qc2 { [%eval 0,1] [%emt 0:00:00] } 7...a6
{ [%eval 0,1] [%emt 0:00:00] } 8.a4 { [%eval 0,1] [%emt 0:00:00] } 8...Bd7
{ [%eval 0,1] [%emt 0:00:00] } 9.Ne5 { [%eval 24,13] [%emt 0:00:38] } 9...Bc6
{ [%eval 46,12] [%emt 0:00:35] (Bc6) } 10.Nxc6
{ [%eval 29,14] [%emt 0:00:42] (Nxc6) } 10...Nxc6
{ [%eval 26, 14] [%emt 0:00:49] (Nxc6) } 11.e3
{ [%eval 17,14] [%emt 0:00:42] (Bxc6) } 11...Nd5
{ [%eval 38,12] [%emt 0:00:40] (Na5) } 12.Qxc4
{ [%eval 41,12] [%emt 0:00:42] (Qxc4) } 12...Na5
{ [%eval 32,12] [%emt 0:00:41] (Qd7) } 13.Qc2
{ [%eval 30,14] [%emt 0:00:38] (Qd3) } 13...Nb4
{ [%eval 30,12] [%emt 0:00:38] (Nb4) } 14.Qc3
{ [%eval 12,14] [%emt 0:00:43] (Qe2) } 14...Rc8
{ [%eval 83,13] [%emt 0:00:51] (Rc8) } 15.e4
{ [%eval -39,14] [%emt 0:00:43] (Na3) } 15...c5
{ [%eval 103,13] [%emt 0:00:27] (c5) } 16.d5
{ [%eval -59,13] [%emt 0:00:35] (d5) } 16...exd5
{ [%eval 96,12] [%emt 0:00:38] (c4) } 17.exd5
{ [%eval -28,13] [%emt 0:00:44] (exd5) } 17...c4
{ [%eval 107,12] [%emt 0:00: 43] (c4) } 18.Nd2
{ [%eval -69,14] [%emt 0:00:44] (Nd2) } 18...Nd3
{ [%eval 107,12] [%emt 0:00:42] (Nxd5) } 19.Rb1
{ [%eval -39,12] [%emt 0:00:42] (Rb1) } 19...Bb4
{ [%eval 107,12] [%emt 0:00:48] (Bb4) } 20.Qc2
{ [%eval -42,13] [%emt 0:00:44] (Qc2) } 20...f5
{ [%eval 107,12] [%emt 0:01:05] (Rc5) } 21.Rd1
{ [%eval -44,12] [%emt 0:00:45] (Nf3) } 21...Bc5
{ [%eval 104,12] [%emt 0:01:37] (Bc5) } 22.Rf1
{ [%eval -62, 13] [%emt 0:00:45] (Rf1) } 22...Kh8
{ [%eval 105,11] [%emt 0:00:37] (Re8) } 23.Qc3
{ [%eval -61,11] [%emt 0:00:38] (Bf3) } 23...Bb4
{ [%eval 116,12] [%emt 0:00:47] (Bxf2) } 24.Qc2
{ [%eval -84,12] [%emt 0:00:46] (Qc2) } 24...f4
{ [%eval 118,12] [%emt 0:02:09] (Re8) } 25.Be4
{ [%eval -79,12] [%emt 0:00:46] (Bh3) } 25...Nxc1
{ [%eval 124,12] [%emt 0:00:42] (Rc5) } 26.Qxc1
{ [%eval -66,13] [%emt 0:00:46] (Qxc1) } 26...Qe7
{ [%eval 124,12] [%emt 0:00:46] (fxg3) } 27.Qc2
{ [%eval -50,13] [%emt 0:00:38] (Bg2) } 27...Bxd2
{ [%eval 107,12] [%emt 0:00:36] (Bxd2) } 28.Qxd2
{ [%eval -63,14] [%emt 0:00:43] (Qxd2) } 28...Nb3
{ [%eval 98,12] [%emt 0:00:39] (Nb3) } 29.Qe1
{ [%eval -60,14] [%emt 0:00:48] (Qe1) } 29...Rce8
{ [%eval 106,12] [%emt 0:00:39] (Rce8) } 30.f3
{ [%eval -57,13] [%emt 0:00:48] (f3) } 30...Nc5
{ [%eval 100,12] [%emt 0:01: 10] (Nc5) } 31.a5
{ [%eval -82,13] [%emt 0:00:49] (Rd1) } 31...fxg3
{ [%eval 126,12] [%emt 0:00:30] (fxg3) } 32.hxg3
{ [%eval -81,14] [%emt 0:00:48] (hxg3) } 32...Qd6
{ [%eval 126,12] [%emt 0:00:32] (Qd6) } 33.Kg2
{ [%eval -78,15] [%emt 0:00:50] (Kg2) } 33...Nxe4
{ [%eval 114,14] [%emt 0:00:44] (Nxe4) } 34.fxe4
{ [%eval -76,15] [%emt 0:00:51] (fxe4) } 34...Rxf1
{ [%eval 105,14] [%emt 0:00:35] (Rxf1) } 35.Kxf1
{ [%eval -90,15] [%emt 0:00:52] (Qxf1) } 35...Qg6
{ [%eval 129,13] [%emt 0:00:23] (Qg6) } 36.Rd1
{ [%eval -70,15] [%emt 0:00:53] (Kg1) } 36...Rxe4
{ [%eval 125,14] [%emt 0:00: 46] (Rxe4) } 37.Qf2
{ [%eval -82,14] [%emt 0:00:54] (Qf2) } 37...h6
{ [%eval 107,12] [%emt 0:00:23] (h6) } 38.Rd2
{ [%eval -81,14] [%emt 0:00:56] (Kg2) } 38...Re5
{ [%eval 104,13] [%emt 0:00:22] (Re5) } 39.Kg2
{ [%eval -93,15] [%emt 0:00:59] (Kg2) } 39...Qe4+
{ [%eval 104,12] [%emt 0:00:19] (Qe4) } 40.Qf3
{ [%eval -84,16] [%emt 0:01:04] (Qf3) } 40...Qe1
{ [%eval 73,13] [%emt 0:00:18] (Qe1) } 41.Qf8+
{ [%eval -86,15] [%emt 0:00:34] (Qf2) } 41...Kh7
{ [%eval 121,3] [%emt 0:00:00] (Kh7) } 42.Qf2
{ [%eval -86,14] [%emt 0:00:34] (Qf2) } 42...Qc1
{ [%eval 56,13] [%emt 0:00:43] (Qc1) } 43.Qf4
{ [%eval -42,14] [%emt 0:00:34] (Qf4) } 43...Re7
{ [%eval 35,14] [%emt 0:00:42] (Re8) } 44.d6
{ [%eval 3,14] [%emt 0:00:30] (d6) } 44...Rf7
{ [%eval 33,14] [%emt 0:00:31] (Rf7) } 45.Qe4+
{ [%eval 9,14] [%emt 0:00:34] (Qd4) } 45...g6
{ [%eval 7,15] [%emt 0:00:38] (g6) } 46.Qd5
{ [%eval 0,13] [%emt 0:00:34] (Qd5) } 46...Qf1+
{ [%eval 10,16] [%emt 0:00:38] (Qf1) } 47.Kh2
{ [%eval 9,15] [%emt 0:00:34] (Kh2) } 47...Rd7
{ [%eval 15,15] [%emt 0:00:33] (Rf2) } 48.Qe6
{ [%eval 57,15] [%emt 0:00:34] (Qe6) } 48...Qf5
{ [%eval 0,16] [%emt 0:00:45] (Qf5) } 49.Qxc4
{ [%eval 41,15] [%emt 0: 00:34] (Qxc4) } 49...Qxa5
{ [%eval 0,16] [%emt 0:00:55] (Qxa5) } 50.Rf2
{ [%eval 43,15] [%emt 0:00:33] (Rf2) } 50...Rg7
{ [%eval 0,16] [%emt 0:00:49] (Rg7) } 51.Qd4
{ [%eval 36,14] [%emt 0:00:35] (Qe6) } 51...Qd8
{ [%eval 14,12] [%emt 0:00:31] (Qd8) } 52.Rf6
{ [%eval 34,13] [%emt 0:00:28] (Re2) } 52...Qe8
{ [%eval 16,12] [%emt 0:00:22] (Qe8) } 53.Qd2
{ [%eval 34,12] [%emt 0:00:35] (Qd5) } 53...h5
{ [%eval 19,12] [%emt 0:00:36] (Rd7) } 54.b4
{ [%eval 25,12] [%emt 0:00:36] (b4) } 54...b5
{ [%eval 19,12] [%emt 0:00: 32] (Rd7) } 55.Qd3
{ [%eval 27,12] [%emt 0:00:33] (Qd3) } 55...Ra7
{ [%eval 18,13] [%emt 0:00:52] (Rd7) } 56.Kg1
{ [%eval 27,13] [%emt 0:00:32] (Kh3) } 56...Rd7
{ [%eval 18,13] [%emt 0:00:24] (Rg7) } 57.Kh1
{ [%eval 20,13] [%emt 0:00:36] (Kg2) } 57...Qe1+
{ [%eval 0,13] [%emt 0:00:28] (Kg7) } 58.Kg2
{ [%eval 22,14] [%emt 0:00: 36] (Kh2) } 58...Qe8
{ [%eval 0,16] [%emt 0:00:36] (Qe8) } 59.Kh3 { [%eval 17,14] [%emt 0:00:36] }
59...Ra7 { [%eval 3,13] [%emt 0:00:25] (Kg7) } 60.Qf3
{ [%eval 11,12] [%emt 0:00:30] (g4) } 60...Qc8+
{ [%eval 20,12] [%emt 0:00:32] (Qc8) } 61.Kg2
{ [%eval 11,13] [%emt 0:00:37] (Kh2) } 61...Qc4
{ [%eval 21,13] [%emt 0:01:04] (Qc4) } 62.Qe3
{ [%eval 3,13] [%emt 0:00:37] (Rf8) } 62...Rg7
{ [%eval 36,13] [%emt 0:00:30] (Qa2) } 63.Qd2
{ [%eval 0,13] [%emt 0:00:38] (Qc5) } 63...Qe4+
{ [%eval 33,14] [%emt 0: 00:41] (Rd7) } 64.Kh2
{ [%eval 7,14] [%emt 0:00:37] (Kh2) } 64...Rd7
{ [%eval 33,14] [%emt 0:00:50] (Rd7) } 1/2-1/2